fUSD/lending_fUSD_20250512
["ID","MTS","AMOUNT","RATE_DAILY","PERIOD"]
[360846454,1747067446444,-400.0,0.00013698,2]
[360846455,1747067446453,-400.0,0.00013698,2]
[360846456,1747067446463,-400.0,0.00013698,2]
[360846457,1747067446474,-400.0,0.00013698,2]
[360846459,1747067446483,-843.56,0.00013698,2]
[360846460,1747067446492,-400.0,0.00013698,2]
[360846461,1747067446501,-400.0,0.00013698,2]
[360846462,1747067446511,-412.63855134,0.00013698,2]
[360846463,1747067446519,-400.0,0.00013698,2]
[360846464,1747067446529,-38.65518668,0.00013698,2]
[360846466,1747067446542,-416.05976894,0.00013698,2]
[360846467,1747067446551,-400.0,0.00013698,2]
[360846468,1747067446561,-400.0,0.00013698,2]
[360846469,1747067446570,-541.12,0.00013698,2]
[360846470,1747067446580,-400.0,0.00013698,2]
[360846472,1747067446589,-471.6,0.00013698,2]
[360846474,1747067446598,-400.0,0.00013698,2]
[360846476,1747067446608,-322.78981293,0.00013698,2]
[360846478,1747067446617,-400.0,0.00013698,2]
[360846479,1747067446627,-400.0,0.00013698,2]
[360846480,1747067446636,-400.0,0.00013698,2]
[360846481,1747067446646,-400.0,0.00013698,2]
[360846482,1747067446655,-402.22993589,0.00013698,2]
[360846483,1747067446665,-400.0,0.00013698,2]
[360846484,1747067446675,-400.0,0.00013698,2]
[360846485,1747067446684,-400.0,0.00013698,2]
[360846486,1747067446694,-400.0,0.00013698,2]
[360846487,1747067446704,-401.27469673,0.00013698,2]
[360846488,1747067446713,-400.0,0.00013698,2]
[360846489,1747067446723,-409.85,0.00013698,2]
[360846490,1747067446733,-215.4102064,0.00013698,2]
[360846491,1747067446742,-400.0,0.00013698,2]
[360846492,1747067446751,-400.0,0.00013698,2]
[360846493,1747067446764,-400.0,0.00013698,2]
[360846494,1747067446774,-384.70378489,0.00013698,2]
[360846495,1747067446789,-15.29621511,0.00013698,2]
[360846496,1747067446798,-464.19057097,0.00013698,2]
[360846497,1747067446809,-262.86340872,0.00013698,2]
[360846498,1747067446821,-12029.32602031,0.00013698,2]
[360846499,1747067446830,-400.0,0.00013698,2]
[360846500,1747067446840,-400.0,0.00013698,2]
[360846501,1747067446850,-246.81760356,0.00013698,2]
[360846502,1747067446859,-400.0,0.00013698,2]
[360846503,1747067446868,-935.01,0.00013698,2]
[360846504,1747067446878,-400.0,0.00013698,2]
[360846505,1747067446887,-400.0,0.00013698,2]
[360846506,1747067446896,-400.0,0.00013698,2]
[360846507,1747067446905,-400.0,0.00013698,2]
[360846508,1747067446914,-400.0,0.00013698,2]
[360846509,1747067446923,-400.0,0.00013698,2]
[360846510,1747067446933,-400.0,0.00013698,2]
[360846511,1747067446942,-39477.44403403,0.00013698,2]
[360846512,1747067446954,-44549.46486591,0.00013698,2]
[360846513,1747067446969,-10239.64110006,0.00013698,2]
[360846514,1747067446980,-74.94689994,0.00013698,2]
[360846515,1747067446992,-325.05310006,0.00013698,2]
[360846516,1747067447002,-400.0,0.00013698,2]
[360846517,1747067447011,-400.0,0.00013698,2]
[360846518,1747067447021,-2439.16,0.00013698,2]
[360846519,1747067447030,-170.83297618,0.00013698,2]
[360846520,1747067447040,-400.0,0.00013698,2]
[360846521,1747067447049,-950.68392376,0.00013698,2]
[360846522,1747067447313,-10.35607624,0.00013698,2]
[360846523,1747067447323,-400.0,0.00013698,2]
[360846524,1747067447332,-500.0,0.00013698,2]
[360846525,1747067447341,-500.0,0.00013698,2]
[360846526,1747067447350,-400.0,0.00013698,2]
[360846527,1747067447359,-400.0,0.00013698,2]
[360846528,1747067447368,-400.0,0.00013698,2]
[360846529,1747067447377,-400.0,0.00013698,2]
[360846530,1747067447387,-400.0,0.00013698,2]
[360846531,1747067447396,-400.0,0.00013698,2]
[360846532,1747067447405,-348.10971273,0.00013698,2]
[360846533,1747067447417,-602.15266943,0.00013698,2]
[360846534,1747067447429,-3522.43815578,0.00013698,2]
[360846535,1747067447440,-5424.90470277,0.00013698,2]
[360846536,1747067601058,1296.51,0.00010798,2]
[360846566,1747068270804,-360.54910362,0.00011863,2]
[360846569,1747068278121,-352.13129282,0.00011862,2]
[360846573,1747068286403,-147.86870718,0.00011862,2]
[360846574,1747068286434,-138.61645528,0.00011862,2]
[360846576,1747068290635,-289.78241877,0.00011862,2]
[360846578,1747068294779,-71.60112595,0.00011862,2]
[360846579,1747068294808,-247.89398328,0.00011862,2]
[360846583,1747068302557,-241.24088796,0.00011861,2]
[360846585,1747068307549,-265.41220736,0.00011861,2]
[360846589,1747068311897,-175.00990309,0.00011861,2]
[360846591,1747068319255,-171.84559169,0.00011861,2]
[360846593,1747068322342,-207.42483919,0.00011861,2]
[360846596,1747068327042,-139.06657071,0.00011861,2]
[360846597,1747068327064,-58.75911204,0.00011861,2]
[360846598,1747068328007,150.0,0.00013699,7]
[360846601,1747068336246,-91.24088796,0.00011861,2]
[360846602,1747068336278,-195.96899896,0.00011862,2]
[360846607,1747068343040,-56.13701776,0.00011862,2]
[360846608,1747068343072,-137.503153,0.00011862,2]
[360846609,1747068344236,-362.496847,0.00011862,2]
[360846610,1747068344267,-500.0,0.00011862,2]
[360846611,1747068344296,-500.0,0.00011862,2]
[360846612,1747068344326,-500.0,0.00011862,2]
[360846613,1747068344356,-500.0,0.00011862,2]
[360846614,1747068344388,-500.0,0.00011862,2]
[360846615,1747068344418,-500.0,0.00011862,2]
[360846616,1747068344448,-500.0,0.00011862,2]
[360846617,1747068344477,-500.0,0.00011862,2]
[360846618,1747068344505,-500.0,0.00011862,2]
[360846619,1747068344535,-500.0,0.00011862,2]
[360846620,1747068344564,-260.01789376,0.00011862,2]
[360846621,1747068344592,-500.0,0.00011862,2]
[360846622,1747068344622,-500.0,0.00011862,2]
[360846623,1747068344652,-500.0,0.00011862,2]
[360846624,1747068344681,-500.0,0.00011862,2]
[360846625,1747068344710,-500.0,0.00011862,2]
[360846626,1747068344740,-500.0,0.00011862,2]
[360846627,1747068344769,-500.0,0.00011862,2]
[360846628,1747068344799,-499.15840971,0.00011862,2]
[360846629,1747068344828,-331.19898614,0.00011862,2]
[360846630,1747068344856,-47.12786339,0.00011862,2]
[360846631,1747068345621,-230.95067847,0.00011862,2]
[360846632,1747068345648,-422.90388637,0.00011862,2]
[360846634,1747068345677,-302.17431725,0.00011862,2]
[360846636,1747068345703,-1086.62089638,0.00011863,2]
[360846637,1747068345730,-169.37,0.00012238,2]
[360846638,1747068345756,-200.0,0.0001229,2]
[360846639,1747068345785,-200.0,0.00012325,2]
[360846640,1747068345811,-152.28,0.00012342,2]
[360846641,1747068345837,-152.28,0.00012346,2]
[360846642,1747068345864,-152.28,0.00012349,2]
[360846643,1747068345896,-152.28,0.00012353,2]
[360846644,1747068345923,-152.28,0.00012356,2]
[360846645,1747068345949,-152.28,0.00012359,2]
[360846646,1747068345975,-152.28,0.00012363,2]
[360846647,1747068346002,-152.28,0.00012366,2]
[360846648,1747068346028,-152.28,0.0001237,2]
[360846649,1747068346050,-152.28,0.00012373,2]
[360846650,1747068346074,-152.28,0.00012377,2]
[360846651,1747068346100,-152.28,0.0001238,2]
[360846652,1747068346123,-152.28,0.00012383,2]
[360846653,1747068346149,-152.28,0.00012387,2]
[360846654,1747068346175,-150.0,0.0001239,2]
[360846655,1747068346199,-152.28,0.0001239,2]
[360846656,1747068346224,-152.28,0.00012394,2]
[360846657,1747068346250,-152.28,0.00012397,2]
[360846658,1747068346279,-152.28,0.00012401,2]
[360846659,1747068346304,-152.28,0.00012404,2]
[360846660,1747068346328,-1783.16,0.00012437,2]
[360846661,1747068346353,-235.93852128,0.00012482,2]
[360846662,1747068346382,-177.03662702,0.00012482,2]
[360846663,1747068346407,-1031.85,0.00012483,2]
[360846664,1747068346431,-614.76,0.0001253,2]
[360846665,1747068346459,-501.91507323,0.00012587,2]
[360846666,1747068347976,-10000.0,0.00012587,2]
[360846673,1747068396465,-197.82568275,0.00011861,2]
[360846674,1747068396497,-50.06830053,0.00011861,2]
[360846675,1747068401891,-215.10891132,0.00011861,2]
[360846678,1747068408302,-234.82278815,0.00011861,2]
[360846679,1747068408335,-18.35907665,0.00011861,2]
[360846684,1747068414522,783.51,0.00022,30]
[360846685,1747068415023,-228.63258853,0.00011861,2]
[360846687,1747068419205,-250.0,0.00011861,2]
[360846691,1747068426274,-3.00833482,0.00011861,2]
[360846692,1747068426303,-211.12439965,0.00011861,2]
[360846696,1747068432024,-171.73453106,0.00011861,2]
[360846698,1747068440516,-75.90791058,0.00011861,2]
[360846699,1747068440538,-113.36173243,0.00011861,2]
[360846704,1747068444915,-178.84329252,0.00011861,2]
[360846705,1747068444938,-56.39931118,0.00011861,2]
[360846707,1747068448160,-190.47298922,0.00011861,2]
[360846708,1747068450643,-1.02168288,0.00011861,2]
[360846709,1747068450672,-164.79831712,0.00011861,2]
[360846711,1747068454935,-349.09464315,0.00011861,2]
[360846715,1747068460736,-34.29683874,0.00011861,2]
[360846716,1747068461135,172.32280711,0.00011861,2]
[360846719,1747068464170,-60.84170778,0.00011861,2]
[360846762,1747068632137,-249.78349961,0.00012041,2]
[360846763,1747068632147,-50.21650039,0.00012041,2]
[360846764,1747068632193,-449.78349961,0.00012041,2]
[360846765,1747068632203,-250.0,0.00012043,2]
[360846766,1747068632215,-755.35313488,0.00012211,2]
[360846767,1747068632227,-244.64686512,0.00012211,2]
[360846768,1747068632236,-81.64448333,0.00012225,2]
[360846769,1747068632273,-118.35551667,0.00012225,2]
[360846770,1747068632282,-185.37,0.00012258,2]
[360846771,1747068632292,-928.094393,0.00012415,2]
[360846772,1747068632302,-1125.49,0.00012449,2]
[360846773,1747068632312,-200.0,0.00012478,2]
[360846774,1747068632322,-1345.61492677,0.00012587,2]
[360846775,1747068632331,-206.08,0.00012635,2]
[360846776,1747068632341,-299.99,0.00012647,2]
[360846777,1747068632350,-217.32,0.0001266,2]
[360846778,1747068632360,-300.0,0.00012722,2]
[360846779,1747068632369,-1200.0,0.00012722,2]
[360846780,1747068632379,-165.1569649,0.00012722,2]
[360846781,1747068632388,-14288.4,0.00012723,2]
[360846782,1747068632398,-4516.71,0.00012793,2]
[360846783,1747068632407,-635.85,0.00012793,2]
[360846784,1747068632417,-207.4,0.00012918,2]
[360846785,1747068632428,-156.587,0.00012918,2]
[360846786,1747068632437,-151.0,0.00012918,2]
[360846788,1747068632449,-668.65185757,0.00012918,2]
[360846789,1747068632459,-230.57076218,0.00013,2]
[360846792,1747068632469,-500.0,0.00013041,2]
[360846794,1747068632478,-250.0,0.00013047,2]
[360846796,1747068632488,-200.0,0.00013047,2]
[360846798,1747068632498,-250.0,0.00013049,2]
[360846799,1747068632508,-200.0,0.00013049,2]
[360846800,1747068632518,-1296.51,0.00013062,2]
[360846801,1747068632528,-9740.19,0.000132,2]
[360846802,1747068632539,-200.0,0.00013246,2]
[360846803,1747068632548,-150.0,0.00013299,2]
[360846805,1747068632558,-9740.19,0.000133,2]
[360846807,1747068632567,-162.380719,0.00013466,2]
[360846809,1747068632577,-693.3919763,0.00013466,2]
[360846811,1747068632586,-559.17710428,0.00013566,2]
[360846813,1747068632596,-166.36914272,0.00013598,2]
[360846816,1747068632606,-676.17609286,0.00013598,2]
[360846818,1747068632616,-1116.4952,0.00013598,2]
[360846821,1747068632626,-1946.4631,0.00013598,2]
[360846824,1747068632635,-5000.0,0.00013598,2]
[360846827,1747068632645,-820.7509456,0.00013629,2]
[360846830,1747068632657,-500.0,0.00013673,2]
[360846833,1747068632666,-500.0,0.00013673,2]
[360846836,1747068632676,-500.0,0.00013673,2]
[360846839,1747068632686,-500.0,0.00013673,2]
[360846842,1747068632695,-403.10404714,0.00013673,2]
[360846845,1747068632705,-500.0,0.00013673,2]
[360846848,1747068632716,-500.0,0.00013673,2]
[360846850,1747068632725,-500.0,0.00013673,2]
[360846852,1747068632734,-172.65388757,0.00013673,2]
[360846853,1747068632743,-502.655626,0.00013673,2]
[360846854,1747068632753,-500.0,0.00013673,2]
[360846855,1747068632762,-481.45592536,0.00013673,2]
[360846857,1747068632771,-28172.3432771,0.00013691,2]
[360846859,1747068632780,-6846.5712326,0.00013691,2]
[360846860,1747068632788,-10855.65334817,0.00013691,2]
[360846861,1747068632800,-441.681,0.00013691,2]
[360846862,1747068632811,-412.53262336,0.00013691,2]
[360846863,1747068632823,-42179.30189706,0.00013691,2]
[360846864,1747068632850,-353.55172949,0.00013691,2]
[360846865,1747068632861,-11193.8772226,0.00013691,2]
[360846896,1747068638095,-16253.24194904,0.00013691,2]
[360846898,1747068638106,-5641.78,0.00013691,2]
[360846900,1747068638464,-2034.49007772,0.00013691,2]
[360846912,1747068640351,-1662.31509548,0.00013691,2]
[360846913,1747068640363,-711.06194509,0.00013691,2]
[360846914,1747068640374,-24104.6103854,0.00013691,2]
[360846915,1747068640513,-2065.3224,0.00013691,2]
[360846926,1747068643883,-6434.34636785,0.00013691,2]
[360846927,1747068643895,-8572.84583212,0.00013691,2]
[360846930,1747068646044,-10318.596,0.00013691,2]
[360846931,1747068646257,-9595.50901097,0.00013691,2]
[360846932,1747068646365,-5269.75308384,0.00013691,2]
[360846933,1747068646670,-8824.14634508,0.00013691,2]
[360846934,1747068646682,-76372.40590916,0.00013691,2]
[360846935,1747068646694,-3263.96813172,0.00013691,2]
[360846936,1747068715764,1166.85,0.00010897,2]
[360846938,1747068848924,-5473.3,0.00012781,2]
[360846939,1747068848945,-200.0,0.00012783,2]
[360846940,1747068848968,-268.52,0.00012784,2]
[360846941,1747068874008,200.51923094,0.00012736,2]
[360846942,1747069266261,639.116,0.00028,120]
[360846943,1747069335196,199.65,0.00028,120]
[360846944,1747069340228,-559.89313169,0.00015,7]
[360846945,1747069349794,-27440.10686831,0.00015,5]
[360846946,1747069427044,150.0,0.00013699,7]
[360846947,1747069571703,153.09,0.00028,120]
[360846972,1747069777183,1108.5,0.00010663,2]
[360846984,1747069832354,-1000.0,0.00012,2]
[360846985,1747069832365,-200.0,0.00012159,2]
[360846986,1747069832374,-200.0,0.00012396,2]
[360846987,1747069832384,-189.26964301,0.00012449,2]
[360846988,1747069832393,-515.92,0.00012539,2]
[360846989,1747069832403,-250.0,0.00012549,2]
[360846990,1747069832413,-1000.0,0.00012586,2]
[360846991,1747069832423,-508.68,0.00012586,2]
[360846992,1747069832433,-427.08,0.00012636,2]
[360846993,1747069832443,-182.76,0.00012683,2]
[360846994,1747069832452,-150.72,0.00012713,2]
[360846995,1747069832462,-1108.5,0.00012927,2]
[360846996,1747069832473,-1200.0,0.00012999,2]
[360846997,1747069832483,-2380.7367225,0.00013,2]
[360846998,1747069832492,-207.4,0.00013011,2]
[360846999,1747069832502,-250.0,0.00013177,2]
[360847000,1747069832512,-200.0,0.000132,2]
[360847001,1747069832521,-200.0,0.000132,2]
[360847002,1747069832531,-200.0,0.000132,2]
[360847003,1747069832541,-684.73359837,0.000135,2]
[360847004,1747069832550,-500.0,0.000135,3]
[360847005,1747069832560,-500.0,0.000135,4]
[360847007,1747069832569,-183.70585319,0.00013514,2]
[360847009,1747069832579,-6818.0,0.00013515,2]
[360847011,1747069832588,-4029.0,0.00013515,2]
[360847038,1747069832830,-260.505,0.00013515,2]
[360847040,1747069832840,-309.3683,0.00013591,2]
[360847042,1747069832851,-150.0,0.00013597,2]
[360847044,1747069832861,-1637.81009714,0.00013598,2]
[360847046,1747069832871,-5000.0,0.00013598,2]
[360847048,1747069832880,-300.0474,0.00013598,2]
[360847050,1747069832890,-166.36914272,0.00013599,2]
[360847052,1747069832900,-656.6007564,0.00013629,2]
[360847054,1747069832909,-156.587,0.00013683,2]
[360847056,1747069832917,-668.65185757,0.00013683,2]
[360847058,1747069832927,-1000.0,0.0001369,2]
[360847060,1747069832936,-2395.42771347,0.00013691,2]
[360847070,1747069838233,-918.594,0.00013515,2]
[360847071,1747069838244,-668.17761932,0.00013691,2]
[360847072,1747069838253,-1637.81009706,0.00013695,2]
[360847073,1747069838263,-400.0,0.00013698,2]
[360847074,1747069838272,-68.16771985,0.00013698,2]
[360847075,1747069838284,-460.75817232,0.00013698,2]
[360847076,1747069838294,-400.0,0.00013698,2]
[360847077,1747069838303,-400.0,0.00013698,2]
[360847078,1747069838312,-545.339269,0.00013698,2]
[360847079,1747069838322,-400.0,0.00013698,2]
[360847080,1747069838332,-401.03085462,0.00013698,2]
[360847081,1747069838341,-400.0,0.00013698,2]
[360847082,1747069838350,-400.0,0.00013698,2]
[360847083,1747069838359,-403.38852268,0.00013698,2]
[360847084,1747069838368,-151.0,0.00013698,2]
[360847085,1747069838378,-151.0,0.00013698,2]
[360847086,1747069838387,-161.61666022,0.00013698,2]
[360847087,1747069838397,-151.0,0.00013698,2]
[360847088,1747069838406,-402.44901204,0.00013698,2]
[360847089,1747069838416,-258.4218234,0.00013698,2]
[360847090,1747069838425,-164.102788,0.00013698,2]
[360847091,1747069838434,-400.0,0.00013698,2]
[360847092,1747069838444,-164.102788,0.00013698,2]
[360847093,1747069838453,-403.17243444,0.00013698,2]
[360847094,1747069838462,-146.10689075,0.00013698,2]
[360847096,1747069838710,-253.89310925,0.00013698,2]
[360847097,1747069838720,-400.0,0.00013698,2]
[360847098,1747069838730,-409.15801341,0.00013698,2]
[360847099,1747069838739,-400.0,0.00013698,2]
[360847100,1747069838749,-400.0,0.00013698,2]
[360847101,1747069838759,-400.0,0.00013698,2]
[360847102,1747069838768,-151.0,0.00013698,2]
[360847103,1747069838778,-151.0,0.00013698,2]
[360847104,1747069838787,-167.107458,0.00013698,2]
[360847105,1747069838797,-151.0,0.00013698,2]
[360847106,1747069838808,-152.208586,0.00013698,2]
[360847107,1747069838818,-400.0,0.00013698,2]
[360847108,1747069838828,-400.0,0.00013698,2]
[360847109,1747069838837,-402.54369734,0.00013698,2]
[360847110,1747069838850,-500.0,0.00013698,2]
[360847111,1747069838859,-500.0,0.00013698,2]
[360847112,1747069838868,-151.0,0.00013698,2]
[360847113,1747069838877,-151.0,0.00013698,2]
[360847114,1747069838886,-400.0,0.00013698,2]
[360847115,1747069838897,-528.05,0.00013698,2]
[360847116,1747069838907,-151.0,0.00013698,2]
[360847117,1747069838917,-151.0,0.00013698,2]
[360847118,1747069838927,-400.0,0.00013698,2]
[360847119,1747069838935,-400.0,0.00013698,2]
[360847120,1747069838945,-398.0,0.00013698,2]
[360847121,1747069838955,-400.0,0.00013698,2]
[360847122,1747069838965,-400.0,0.00013698,2]
[360847123,1747069838975,-385.939136,0.00013698,2]
[360847124,1747069839016,-14.060864,0.00013698,2]
[360847125,1747069839025,-153.385844,0.00013698,2]
[360847126,1747069839034,-323.878292,0.00013698,2]
[360847127,1747069839046,-76.121708,0.00013698,2]
[360847128,1747069839055,-400.0,0.00013698,2]
[360847129,1747069839064,-39.678292,0.00013698,2]
[360847130,1747069839075,-360.321708,0.00013698,2]
[360847131,1747069839084,-151.0,0.00013698,2]
[360847132,1747069839093,-151.0,0.00013698,2]
[360847133,1747069839103,-400.0,0.00013698,2]
[360847134,1747069839113,-464.62912473,0.00013698,2]
[360847135,1747069839122,-400.0,0.00013698,2]
[360847136,1747069839131,-131.84916727,0.00013698,2]
[360847137,1747069839143,-303.58083273,0.00013698,2]
[360847138,1747069839152,-400.0,0.00013698,2]
[360847139,1747069839161,-400.0,0.00013698,2]
[360847140,1747069839171,-400.0,0.00013698,2]
[360847141,1747069839179,-312.98852225,0.00013698,2]
[360847142,1747069839189,-400.0,0.00013698,2]
[360847143,1747069839199,-400.0,0.00013698,2]
[360847144,1747069839208,-205.15620212,0.00013698,2]
[360847145,1747069839219,-400.0,0.00013698,2]
[360847146,1747069839230,-233.95750193,0.00013698,2]
[360847147,1747069839249,-166.04249807,0.00013698,2]
[360847148,1747069839259,-210.30173356,0.00013698,2]
[360847149,1747069839270,-400.0,0.00013698,2]
[360847150,1747069839280,-400.0,0.00013698,2]
[360847151,1747069839290,-400.0,0.00013698,2]
[360847152,1747069839300,-414.834444,0.00013698,2]
[360847153,1747069839311,-400.0,0.00013698,2]
[360847154,1747069839321,-259.34230658,0.00013698,2]
[360847155,1747069839332,-400.0,0.00013698,2]
[360847156,1747069839342,-400.0,0.00013698,2]
[360847157,1747069839352,-407.40846463,0.00013698,2]
[360847158,1747069839362,-407.01654819,0.00013698,2]
[360847159,1747069839372,-400.0,0.00013698,2]
[360847160,1747069839382,-185.66785508,0.00013698,2]
[360847161,1747069839392,-400.0,0.00013698,2]
[360847162,1747069839401,-151.0,0.00013698,2]
[360847163,1747069839411,-151.0,0.00013698,2]
[360847164,1747069839421,-151.0,0.00013698,2]
[360847165,1747069839431,-151.0,0.00013698,2]
[360847166,1747069839441,-413.79377366,0.00013698,2]
[360847167,1747069839451,-400.0,0.00013698,2]
[360847168,1747069839460,-400.0,0.00013698,2]
[360847169,1747069839469,-2725.47655532,0.00013698,2]
[360847170,1747069840382,-879.0,0.00013515,2]
[360847171,1747069840392,-778.68,0.00013698,2]
[360847172,1747069840488,-1495.84344468,0.00013698,2]
[360847173,1747069840498,-400.0,0.00013698,2]
[360847174,1747069840509,-462.14088801,0.00013698,2]
[360847175,1747069840518,-400.0,0.00013698,2]
[360847176,1747069840528,-400.0,0.00013698,2]
[360847177,1747069840537,-400.0,0.00013698,2]
[360847178,1747069840547,-400.0,0.00013698,2]
[360847179,1747069840556,-400.0,0.00013698,2]
[360847180,1747069840566,-400.0,0.00013698,2]
[360847181,1747069840575,-400.0,0.00013698,2]
[360847182,1747069840585,-400.0,0.00013698,2]
[360847183,1747069840595,-400.0,0.00013698,2]
[360847184,1747069840606,-400.0,0.00013698,2]
[360847185,1747069840616,-400.0,0.00013698,2]
[360847186,1747069840625,-400.0,0.00013698,2]
[360847187,1747069840635,-400.0,0.00013698,2]
[360847188,1747069840644,-400.0,0.00013698,2]
[360847189,1747069840653,-405.71931677,0.00013698,2]
[360847190,1747069840662,-400.0,0.00013698,2]
[360847191,1747069840672,-400.0,0.00013698,2]
[360847192,1747069840681,-400.0,0.00013698,2]
[360847193,1747069840691,-256.48468514,0.00013698,2]
[360847194,1747069840701,-400.0,0.00013698,2]
[360847195,1747069840710,-408.1,0.00013698,2]
[360847196,1747069840719,-400.0,0.00013698,2]
[360847197,1747069840730,-400.0,0.00013698,2]
[360847198,1747069840740,-400.0,0.00013698,2]
[360847199,1747069840749,-400.0,0.00013698,2]
[360847200,1747069840759,-400.0,0.00013698,2]
[360847201,1747069840769,-400.0,0.00013698,2]
[360847202,1747069840778,-400.0,0.00013698,2]
[360847203,1747069840788,-400.0,0.00013698,2]
[360847204,1747069840798,-150.0,0.00013698,2]
[360847205,1747069840812,-400.0,0.00013698,2]
[360847206,1747069840821,-400.0,0.00013698,2]
[360847207,1747069840830,-400.0,0.00013698,2]
[360847208,1747069840839,-400.0,0.00013698,2]
[360847210,1747069840849,-400.0,0.00013698,2]
[360847211,1747069840861,-476.07005962,0.00013698,2]
[360847212,1747069840870,-400.0,0.00013698,2]
[360847213,1747069840881,-400.0,0.00013698,2]
[360847214,1747069840890,-151.0,0.00013698,2]
[360847215,1747069840899,-154.67380853,0.00013698,2]
[360847216,1747069840909,-151.0,0.00013698,2]
[360847217,1747069840918,-400.0,0.00013698,2]
[360847218,1747069840927,-151.0,0.00013698,2]
[360847219,1747069840937,-151.0,0.00013698,2]
[360847220,1747069840947,-403.70597461,0.00013698,2]
[360847221,1747069840956,-520.01802168,0.00013698,2]
[360847222,1747069840966,-400.0,0.00013698,2]
[360847223,1747069840976,-151.0,0.00013698,2]
[360847224,1747069840987,-151.0,0.00013698,2]
[360847225,1747069840997,-400.0,0.00013698,2]
[360847226,1747069841008,-151.0,0.00013698,2]
[360847227,1747069841018,-400.0,0.00013698,2]
[360847228,1747069841028,-400.0,0.00013698,2]
[360847229,1747069841037,-400.0,0.00013698,2]
[360847230,1747069841047,-400.0,0.00013698,2]
[360847231,1747069841056,-430.43,0.00013698,2]
[360847232,1747069841065,-400.0,0.00013698,2]
[360847233,1747069841075,-400.0,0.00013698,2]
[360847234,1747069841084,-263.62692303,0.00013698,2]
[360847235,1747069841094,-400.0,0.00013698,2]
[360847236,1747069841103,-400.0,0.00013698,2]
[360847237,1747069841113,-400.0,0.00013698,2]
[360847238,1747069841124,-400.0,0.00013698,2]
[360847239,1747069841134,-400.0,0.00013698,2]
[360847240,1747069841144,-200.0,0.00013698,2]
[360847241,1747069841154,-17.12302843,0.00013698,2]
[360847242,1747069841168,-382.87697157,0.00013698,2]
[360847243,1747069841177,-400.0,0.00013698,2]
[360847244,1747069841187,-182.04881141,0.00013698,2]
[360847245,1747069841196,-400.0,0.00013698,2]
[360847246,1747069841206,-400.0,0.00013698,2]
[360847247,1747069841215,-400.0,0.00013698,2]
[360847248,1747069841225,-439.22445243,0.00013698,2]
[360847249,1747069841236,-400.0,0.00013698,2]
[360847250,1747069841246,-296.61744962,0.00013698,2]
[360847251,1747069841256,-400.0,0.00013698,2]
[360847252,1747069841266,-400.0,0.00013698,2]
[360847253,1747069841276,-400.0,0.00013698,2]
[360847254,1747069841286,-469.0207326,0.00013698,2]
[360847255,1747069841295,-477.33559474,0.00013698,2]
[360847256,1747069841305,-400.0,0.00013698,2]
[360847257,1747069841315,-400.0,0.00013698,2]
[360847258,1747069841323,-400.0,0.00013698,2]
[360847259,1747069841332,-410.63676288,0.00013698,2]
[360847260,1747069841342,-501.43930211,0.00013698,2]
[360847261,1747069841352,-535.49,0.00013698,2]
[360847262,1747069841362,-151.0,0.00013698,2]
[360847263,1747069841371,-400.0,0.00013698,2]
[360847264,1747069841381,-404.57141626,0.00013698,2]
[360847265,1747069841391,-400.0,0.00013698,2]
[360847266,1747069841401,-262.34751057,0.00013698,2]
[360847267,1747069841410,-400.0,0.00013698,2]